[Event "Early-Titled-Tuesday-Blitz-January-30-2024"]
[Site "Chess.com"]
[Date "2024.01.30"]
[Round "6"]
[White "MITerryble"]
[Black "GMWSO"]
[Result "0-1"]
[WhiteElo "2987"]
[BlackElo "3148"]
[TimeControl "180+1"]
[EndTime "9:08:58 PST"]
[Termination "GMWSO won on time"]

1. d4 {[%clk 0:03:00.9]} 1... Nf6 {[%clk 0:02:59.9]} 2. Bg5 {[%clk 0:03:01.4]}
2... Ne4 {[%clk 0:02:57.9]} 3. Bf4 {[%clk 0:03:01.8]} 3... c5 {[%clk 0:02:57]}
4. f3 {[%clk 0:03:01.9]} 4... Qa5+ {[%clk 0:02:56.9]} 5. c3 {[%clk 0:03:02]}
5... Nf6 {[%clk 0:02:57.2]} 6. d5 {[%clk 0:03:02.7]} 6... e6 {[%clk 0:02:46.8]}
7. e4 {[%clk 0:02:53.4]} 7... exd5 {[%clk 0:02:36.9]} 8. exd5 {[%clk 0:02:54.3]}
8... d6 {[%clk 0:02:27.1]} 9. Na3 {[%clk 0:02:53.2]} 9... Be7 {[%clk 0:02:24.8]}
10. Nc4 {[%clk 0:02:41.5]} 10... Qc7 {[%clk 0:02:18.3]} 11. a4 {[%clk
0:02:41.5]} 11... O-O {[%clk 0:02:14]} 12. Ne2 {[%clk 0:02:35.5]} 12... Re8
{[%clk 0:02:11.7]} 13. Kf2 {[%clk 0:02:27.4]} 13... Nh5 {[%clk 0:01:56.2]} 14.
Be3 {[%clk 0:02:24.2]} 14... b6 {[%clk 0:01:44.7]} 15. g4 {[%clk 0:01:48.2]}
15... Bh4+ {[%clk 0:01:43.9]} 16. Ng3 {[%clk 0:01:47.4]} 16... Nf6 {[%clk
0:01:35]} 17. g5 {[%clk 0:01:45.9]} 17... Nh5 {[%clk 0:01:31.1]} 18. Kg2 {[%clk
0:01:40.3]} 18... Rxe3 {[%clk 0:01:28.1]} 19. Nxe3 {[%clk 0:01:17.6]} 19... Nf4+
{[%clk 0:01:29]} 20. Kf2 {[%clk 0:01:17.1]} 20... Nd7 {[%clk 0:01:22.4]} 21. Nf5
{[%clk 0:01:04.1]} 21... Bxg5 {[%clk 0:01:20.9]} 22. h4 {[%clk 0:01:04.1]} 22...
Bf6 {[%clk 0:01:11.8]} 23. Qd2 {[%clk 0:01:04.5]} 23... Be5 {[%clk 0:01:09.5]}
24. Rg1 {[%clk 0:00:57.3]} 24... Qd8 {[%clk 0:00:55.9]} 25. Ne2 {[%clk
0:00:41.1]} 25... Nxe2 {[%clk 0:00:49.8]} 26. Bxe2 {[%clk 0:00:42]} 26... g6
{[%clk 0:00:44.2]} 27. Qh6 {[%clk 0:00:28.8]} 27... Nf8 {[%clk 0:00:37.6]} 28.
Bd3 {[%clk 0:00:18.8]} 28... Bxf5 {[%clk 0:00:35.7]} 29. Bxf5 {[%clk 0:00:19.4]}
29... Qf6 {[%clk 0:00:36.2]} 30. Qg5 {[%clk 0:00:14.7]} 30... Qxg5 {[%clk
0:00:19.9]} 31. Rxg5 {[%clk 0:00:15.6]} 31... Bf6 {[%clk 0:00:19.7]} 32. Rg2
{[%clk 0:00:16.2]} 32... Bxh4+ {[%clk 0:00:19.8]} 33. Kf1 {[%clk 0:00:16.8]}
33... Re8 {[%clk 0:00:19]} 34. Bg4 {[%clk 0:00:14.4]} 34... Kh8 {[%clk
0:00:15.7]} 35. Re2 {[%clk 0:00:13.5]} 35... Rb8 {[%clk 0:00:13]} 36. Bh3 {[%clk
0:00:10.3]} 36... Kg7 {[%clk 0:00:12.6]} 37. Kg2 {[%clk 0:00:08]} 37... h5
{[%clk 0:00:11.6]} 38. Re4 {[%clk 0:00:07.5]} 38... Bf6 {[%clk 0:00:09.9]} 39.
Rae1 {[%clk 0:00:07.3]} 39... g5 {[%clk 0:00:07]} 40. Re8 {[%clk 0:00:07]} 40...
Rxe8 {[%clk 0:00:06.1]} 41. Rxe8 {[%clk 0:00:07.9]} 41... Ng6 {[%clk 0:00:06.5]}
42. Bf5 {[%clk 0:00:02.8]} 42... Nh4+ {[%clk 0:00:06.5]} 43. Kf2 {[%clk
0:00:02.1]} 43... Nxf5 {[%clk 0:00:07.4]} 44. Ra8 {[%clk 0:00:02]} 44... a5
{[%clk 0:00:07.5]} 45. Rb8 {[%clk 0:00:01.9]} 45... h4 {[%clk 0:00:06.8]} 0-1

[Event "Early-Titled-Tuesday-Blitz-January-30-2024"]
[Site "Chess.com"]
[Date "2024.01.30"]
[Round "6"]
[White "bardiya_Daneshvar"]
[Black "CarlosjPineror"]
[Result "1-0"]
[WhiteElo "2915"]
[BlackElo "2667"]
[TimeControl "180+1"]
[EndTime "9:08:58 PST"]
[Termination "bardiya_Daneshvar won by resignation"]

1. d4 {[%clk 0:03:00.9]} 1... Nf6 {[%clk 0:02:58.3]} 2. c4 {[%clk 0:03:01.8]}
2... e6 {[%clk 0:02:56.9]} 3. Nc3 {[%clk 0:03:02.5]} 3... Bb4 {[%clk 0:02:57]}
4. Qc2 {[%clk 0:03:03.1]} 4... d5 {[%clk 0:02:31]} 5. cxd5 {[%clk 0:03:02.9]}
5... exd5 {[%clk 0:02:30.5]} 6. Bg5 {[%clk 0:03:03.5]} 6... h6 {[%clk 0:02:26]}
7. Bh4 {[%clk 0:03:03.4]} 7... c6 {[%clk 0:02:23.6]} 8. e3 {[%clk 0:03:01.8]}
8... Be7 {[%clk 0:02:23.3]} 9. Bd3 {[%clk 0:03:02.2]} 9... O-O {[%clk
0:02:23.1]} 10. Nf3 {[%clk 0:03:01.7]} 10... Nbd7 {[%clk 0:02:22.3]} 11. h3
{[%clk 0:02:57.1]} 11... Re8 {[%clk 0:02:22.8]} 12. Bg3 {[%clk 0:02:56.4]} 12...
Nf8 {[%clk 0:02:13.2]} 13. O-O {[%clk 0:02:56.3]} 13... Bd6 {[%clk 0:01:58.3]}
14. Ne5 {[%clk 0:02:54.6]} 14... Nh5 {[%clk 0:01:45.3]} 15. Bh2 {[%clk
0:02:52.1]} 15... f6 {[%clk 0:01:45.5]} 16. Ng6 {[%clk 0:02:45.1]} 16... Bxh2+
{[%clk 0:01:42.7]} 17. Kxh2 {[%clk 0:02:44.4]} 17... Qd6+ {[%clk 0:01:34.7]} 18.
Kg1 {[%clk 0:02:33.4]} 18... f5 {[%clk 0:01:29.7]} 19. Ne5 {[%clk 0:02:28.8]}
19... g6 {[%clk 0:01:29.7]} 20. f4 {[%clk 0:02:23.1]} 20... Nf6 {[%clk
0:01:27.6]} 21. Rab1 {[%clk 0:02:20]} 21... Ne4 {[%clk 0:01:24.3]} 22. b4 {[%clk
0:02:15.5]} 22... a6 {[%clk 0:01:22.4]} 23. Na4 {[%clk 0:02:12.7]} 23... h5
{[%clk 0:01:18.5]} 24. Nc5 {[%clk 0:02:10.2]} 24... Kg7 {[%clk 0:01:17]} 25. a4
{[%clk 0:02:09.6]} 25... Ne6 {[%clk 0:01:11.4]} 26. Bxe4 {[%clk 0:02:04.9]}
26... dxe4 {[%clk 0:01:08.1]} 27. Rfd1 {[%clk 0:01:55.1]} 27... Nc7 {[%clk
0:01:07.9]} 28. Nc4 {[%clk 0:01:52.2]} 28... Qe7 {[%clk 0:01:02.4]} 29. Nb6
{[%clk 0:01:50.8]} 29... Rb8 {[%clk 0:00:58.3]} 30. d5 {[%clk 0:01:51.2]} 30...
Nxd5 {[%clk 0:00:57.2]} 31. Nxd5 {[%clk 0:01:52.1]} 31... cxd5 {[%clk
0:00:58.1]} 32. Rxd5 {[%clk 0:01:51.6]} 32... Be6 {[%clk 0:00:53.3]} 33. Rd4
{[%clk 0:01:39.4]} 33... Red8 {[%clk 0:00:46.1]} 34. Rbd1 {[%clk 0:01:36.4]}
34... Bf7 {[%clk 0:00:35]} 35. a5 {[%clk 0:01:08.3]} 35... Rxd4 {[%clk 0:00:29]}
36. Rxd4 {[%clk 0:01:08.2]} 36... Rd8 {[%clk 0:00:29]} 37. Rxd8 {[%clk
0:01:01.1]} 37... Qxd8 {[%clk 0:00:29.9]} 38. Nxb7 {[%clk 0:00:56.9]} 38... Qh4
{[%clk 0:00:29.4]} 39. Qc3+ {[%clk 0:00:53]} 39... Qf6 {[%clk 0:00:27.1]} 40.
Qxf6+ {[%clk 0:00:41.2]} 40... Kxf6 {[%clk 0:00:28]} 41. Nc5 {[%clk 0:00:38.7]}
41... Bc4 {[%clk 0:00:26.9]} 42. h4 {[%clk 0:00:38.4]} 42... Ke7 {[%clk
0:00:25.1]} 43. Kf2 {[%clk 0:00:38.7]} 43... Kd6 {[%clk 0:00:25.6]} 44. Ke1
{[%clk 0:00:39.5]} 44... Kc6 {[%clk 0:00:22.4]} 45. Kd2 {[%clk 0:00:38.7]} 45...
Kb5 {[%clk 0:00:23.1]} 46. Kc3 {[%clk 0:00:38.3]} 46... Bf7 {[%clk 0:00:21.8]}
47. Nd7 {[%clk 0:00:33.2]} 47... Be8 {[%clk 0:00:20.4]} 48. Nc5 {[%clk
0:00:26.3]} 48... Bf7 {[%clk 0:00:20]} 49. Nb7 {[%clk 0:00:25]} 49... Be6 {[%clk
0:00:17]} 50. g3 {[%clk 0:00:23.7]} 50... Kc6 {[%clk 0:00:15.6]} 51. Nc5 {[%clk
0:00:22]} 51... Bc8 {[%clk 0:00:14]} 52. Kc4 {[%clk 0:00:22.3]} 52... Kc7 {[%clk
0:00:13.7]} 53. Kd5 {[%clk 0:00:22]} 1-0

[Event "Early-Titled-Tuesday-Blitz-January-30-2024"]
[Site "Chess.com"]
[Date "2024.01.30"]
[Round "6"]
[White "Sethu0025"]
[Black "vladgoncharov"]
[Result "1-0"]
[WhiteElo "2863"]
[BlackElo "2646"]
[TimeControl "180+1"]
[EndTime "9:08:59 PST"]
[Termination "Sethu0025 won by resignation"]

1. d4 {[%clk 0:03:00.9]} 1... Nf6 {[%clk 0:02:59.4]} 2. c4 {[%clk 0:03:01.5]}
2... e6 {[%clk 0:02:59.1]} 3. Nf3 {[%clk 0:03:02]} 3... Bb4+ {[%clk 0:02:58]} 4.
Nc3 {[%clk 0:03:01.8]} 4... O-O {[%clk 0:02:57.2]} 5. Bg5 {[%clk 0:03:01.4]}
5... c5 {[%clk 0:02:53.8]} 6. Rc1 {[%clk 0:03:00.6]} 6... cxd4 {[%clk
0:02:46.3]} 7. Nxd4 {[%clk 0:03:01.5]} 7... e5 {[%clk 0:02:31.1]} 8. Nf3 {[%clk
0:02:41]} 8... Nc6 {[%clk 0:02:28.1]} 9. e3 {[%clk 0:02:39.2]} 9... h6 {[%clk
0:02:26.2]} 10. Bh4 {[%clk 0:02:34.8]} 10... d6 {[%clk 0:02:24.1]} 11. Be2
{[%clk 0:02:33.8]} 11... Be6 {[%clk 0:02:06.7]} 12. O-O {[%clk 0:02:32.6]} 12...
Bxc3 {[%clk 0:02:05.2]} 13. Rxc3 {[%clk 0:02:32]} 13... Qe7 {[%clk 0:02:04.1]}
14. Nd2 {[%clk 0:02:24]} 14... d5 {[%clk 0:01:52.4]} 15. cxd5 {[%clk 0:02:22.4]}
15... Bxd5 {[%clk 0:01:52]} 16. a3 {[%clk 0:02:14]} 16... Rad8 {[%clk
0:01:45.6]} 17. Qc2 {[%clk 0:02:10]} 17... Rfe8 {[%clk 0:01:26.7]} 18. Rd1
{[%clk 0:02:03.2]} 18... g5 {[%clk 0:01:15.3]} 19. Bg3 {[%clk 0:02:02.3]} 19...
Rd7 {[%clk 0:01:12.1]} 20. f3 {[%clk 0:01:30]} 20... Red8 {[%clk 0:00:58.5]} 21.
Nc4 {[%clk 0:01:24.2]} 21... Bxc4 {[%clk 0:00:49.4]} 22. Rxd7 {[%clk 0:01:16.2]}
22... Qxd7 {[%clk 0:00:48.7]} 23. Rxc4 {[%clk 0:01:11.5]} 23... Qd2 {[%clk
0:00:44.6]} 24. Bf2 {[%clk 0:01:04.4]} 24... Qxc2 {[%clk 0:00:41.2]} 25. Rxc2
{[%clk 0:01:04]} 25... e4 {[%clk 0:00:41.6]} 26. b4 {[%clk 0:00:54.5]} 26...
exf3 {[%clk 0:00:34.3]} 27. gxf3 {[%clk 0:00:53.7]} 27... Ne5 {[%clk 0:00:33.8]}
28. Bg3 {[%clk 0:00:53.5]} 28... Ng6 {[%clk 0:00:20.9]} 29. Kf2 {[%clk
0:00:49.4]} 29... Rd7 {[%clk 0:00:19.9]} 30. Bb5 {[%clk 0:00:48.6]} 30... Re7
{[%clk 0:00:18.8]} 31. Bd6 {[%clk 0:00:47.1]} 31... Re6 {[%clk 0:00:19]} 32.
Rc8+ {[%clk 0:00:47.2]} 32... Kg7 {[%clk 0:00:17.8]} 33. Bc5 {[%clk 0:00:47.4]}
33... Ne5 {[%clk 0:00:17]} 34. Bd4 {[%clk 0:00:39]} 34... a6 {[%clk 0:00:16.5]}
35. Be2 {[%clk 0:00:36]} 35... Nc6 {[%clk 0:00:16.1]} 36. Bc3 {[%clk 0:00:35.2]}
36... h5 {[%clk 0:00:12.6]} 37. Rc7 {[%clk 0:00:31]} 37... b5 {[%clk 0:00:10.6]}
38. e4 {[%clk 0:00:29]} 38... Ne5 {[%clk 0:00:09.7]} 39. Rc5 {[%clk 0:00:27.4]}
39... Neg4+ {[%clk 0:00:07.4]} 40. fxg4 {[%clk 0:00:26.2]} 40... Rxe4 {[%clk
0:00:06.1]} 41. Rxg5+ {[%clk 0:00:23.7]} 41... Kf8 {[%clk 0:00:05]} 42. Bxf6
{[%clk 0:00:23.1]} 42... Rf4+ {[%clk 0:00:05.3]} 43. Bf3 {[%clk 0:00:23]} 43...
Rxf6 {[%clk 0:00:05.8]} 44. Rxh5 {[%clk 0:00:22.4]} 1-0

[Event "Early-Titled-Tuesday-Blitz-January-30-2024"]
[Site "Chess.com"]
[Date "2024.01.30"]
[Round "6"]
[White "1977Ivan"]
[Black "OparinGrigoriy"]
[Result "1-0"]
[WhiteElo "2815"]
[BlackElo "2993"]
[TimeControl "180+1"]
[EndTime "9:09:01 PST"]
[Termination "1977Ivan won by resignation"]

1. d4 {[%clk 0:02:58.9]} 1... Nf6 {[%clk 0:02:59.8]} 2. c4 {[%clk 0:02:59.5]}
2... e6 {[%clk 0:03:00.1]} 3. Nc3 {[%clk 0:03:00.1]} 3... Bb4 {[%clk 0:03:00.5]}
4. Qc2 {[%clk 0:03:00.7]} 4... b6 {[%clk 0:03:00.1]} 5. Bg5 {[%clk 0:02:39.9]}
5... Bb7 {[%clk 0:02:55.9]} 6. e3 {[%clk 0:02:36.4]} 6... h6 {[%clk 0:02:54.3]}
7. Bh4 {[%clk 0:02:36]} 7... g5 {[%clk 0:02:52.2]} 8. Bg3 {[%clk 0:02:35.8]}
8... Ne4 {[%clk 0:02:52.4]} 9. Ne2 {[%clk 0:02:28.3]} 9... c5 {[%clk 0:02:30.1]}
10. O-O-O {[%clk 0:02:25.7]} 10... Nxg3 {[%clk 0:02:20.9]} 11. hxg3 {[%clk
0:02:24.2]} 11... cxd4 {[%clk 0:02:19]} 12. Nxd4 {[%clk 0:02:20]} 12... Na6
{[%clk 0:02:13.3]} 13. a3 {[%clk 0:02:04.2]} 13... Be7 {[%clk 0:02:13.1]} 14. f4
{[%clk 0:02:03.1]} 14... Rc8 {[%clk 0:02:05.3]} 15. Be2 {[%clk 0:01:59.5]} 15...
Kf8 {[%clk 0:01:49.7]} 16. Kb1 {[%clk 0:01:53.9]} 16... Nc5 {[%clk 0:01:44]} 17.
Bf3 {[%clk 0:01:52.2]} 17... Bxf3 {[%clk 0:01:40.8]} 18. gxf3 {[%clk 0:01:53.1]}
18... Kg7 {[%clk 0:01:38.4]} 19. Rh5 {[%clk 0:01:48.2]} 19... Nb7 {[%clk
0:01:05.8]} 20. Ne4 {[%clk 0:01:38.5]} 20... d5 {[%clk 0:00:55.7]} 21. fxg5
{[%clk 0:01:23.9]} 21... Rxc4 {[%clk 0:00:48.8]} 22. gxh6+ {[%clk 0:01:11]}
22... Kf8 {[%clk 0:00:47.6]} 23. Nc3 {[%clk 0:00:45.7]} 23... Bf6 {[%clk
0:00:42]} 24. Nde2 {[%clk 0:00:36.7]} 24... Nd6 {[%clk 0:00:38.2]} 25. Qd3
{[%clk 0:00:35.2]} 25... Bxc3 {[%clk 0:00:32]} 26. Nxc3 {[%clk 0:00:34.5]} 26...
Qf6 {[%clk 0:00:32.7]} 27. e4 {[%clk 0:00:33.5]} 27... Qg6 {[%clk 0:00:27]} 28.
g4 {[%clk 0:00:33.2]} 28... Rxh6 {[%clk 0:00:21.6]} 29. Rxh6 {[%clk 0:00:32.7]}
29... Qxh6 {[%clk 0:00:22.5]} 30. exd5 {[%clk 0:00:33.1]} 30... e5 {[%clk
0:00:23.2]} 31. Qe2 {[%clk 0:00:29.3]} 31... Qg6+ {[%clk 0:00:11.6]} 32. Ka1
{[%clk 0:00:28.3]} 32... Rd4 {[%clk 0:00:04.5]} 33. Qxe5 {[%clk 0:00:25.9]}
33... Rxd1+ {[%clk 0:00:04.8]} 34. Nxd1 {[%clk 0:00:26.5]} 34... Kg8 {[%clk
0:00:05]} 35. Nc3 {[%clk 0:00:26]} 35... Nc4 {[%clk 0:00:04.2]} 36. Qe8+ {[%clk
0:00:25.4]} 36... Kg7 {[%clk 0:00:04.2]} 37. Qe4 {[%clk 0:00:25.4]} 37... Nd6
{[%clk 0:00:02.9]} 38. Qxg6+ {[%clk 0:00:24.1]} 38... Kxg6 {[%clk 0:00:03.8]}
39. Ne4 {[%clk 0:00:23.8]} 39... Nc4 {[%clk 0:00:04.4]} 40. d6 {[%clk
0:00:23.5]} 40... Ne5 {[%clk 0:00:04.8]} 41. f4 {[%clk 0:00:20.9]} 41... Nd7
{[%clk 0:00:03.4]} 42. f5+ {[%clk 0:00:20.7]} 42... Kg7 {[%clk 0:00:03.4]} 43.
g5 {[%clk 0:00:21]} 43... Kf8 {[%clk 0:00:03.9]} 44. b4 {[%clk 0:00:20.8]} 44...
Ne5 {[%clk 0:00:02.8]} 45. Kb2 {[%clk 0:00:20.2]} 45... Ke8 {[%clk 0:00:02.1]}
46. Kc3 {[%clk 0:00:20.1]} 46... Kd7 {[%clk 0:00:01.2]} 47. Kd4 {[%clk
0:00:20.1]} 47... Ng4 {[%clk 0:00:01.7]} 48. Kd5 {[%clk 0:00:17.7]} 48... Ne3+
{[%clk 0:00:02]} 49. Ke5 {[%clk 0:00:18]} 49... Ng4+ {[%clk 0:00:02.9]} 50. Kf4
{[%clk 0:00:17.8]} 50... Nh2 {[%clk 0:00:02.3]} 51. g6 {[%clk 0:00:18]} 51...
fxg6 {[%clk 0:00:02.4]} 52. fxg6 {[%clk 0:00:18.9]} 52... Nf1 {[%clk 0:00:02.6]}
53. g7 {[%clk 0:00:19.1]} 1-0

[Event "Early-Titled-Tuesday-Blitz-January-30-2024"]
[Site "Chess.com"]
[Date "2024.01.30"]
[Round "6"]
[White "vlad10898"]
[Black "sonicdravise"]
[Result "1-0"]
[WhiteElo "2817"]
[BlackElo "2614"]
[TimeControl "180+1"]
[EndTime "9:09:03 PST"]
[Termination "vlad10898 won by resignation"]

1. d4 {[%clk 0:03:00.9]} 1... Nf6 {[%clk 0:02:56.9]} 2. Nf3 {[%clk 0:03:00]}
2... c5 {[%clk 0:02:56]} 3. d5 {[%clk 0:02:47.5]} 3... b5 {[%clk 0:02:54.1]} 4.
Bg5 {[%clk 0:02:46.2]} 4... g6 {[%clk 0:02:54.5]} 5. Bxf6 {[%clk 0:02:40.7]}
5... exf6 {[%clk 0:02:54.3]} 6. e4 {[%clk 0:02:40]} 6... b4 {[%clk 0:02:53.5]}
7. Nbd2 {[%clk 0:02:37.6]} 7... d6 {[%clk 0:02:53.5]} 8. Bd3 {[%clk 0:02:31.7]}
8... Bg7 {[%clk 0:02:53.7]} 9. a3 {[%clk 0:02:29.7]} 9... O-O {[%clk 0:02:48.5]}
10. axb4 {[%clk 0:02:24]} 10... cxb4 {[%clk 0:02:49.4]} 11. O-O {[%clk
0:02:24.2]} 11... Nd7 {[%clk 0:02:48.2]} 12. Nc4 {[%clk 0:02:10.3]} 12... Nc5
{[%clk 0:02:47]} 13. Nd4 {[%clk 0:02:03.6]} 13... f5 {[%clk 0:02:41]} 14. Nc6
{[%clk 0:02:01.2]} 14... Qc7 {[%clk 0:02:40.9]} 15. exf5 {[%clk 0:01:21.9]}
15... Nxd3 {[%clk 0:02:40.4]} 16. Qxd3 {[%clk 0:01:21.9]} 16... Bxf5 {[%clk
0:02:41.1]} 17. Qd2 {[%clk 0:01:22.6]} 17... a5 {[%clk 0:02:16.5]} 18. Rxa5
{[%clk 0:01:21.8]} 18... Rxa5 {[%clk 0:02:15]} 19. N4xa5 {[%clk 0:01:12.8]}
19... Bxb2 {[%clk 0:02:09]} 20. Qxb4 {[%clk 0:01:12.7]} 20... Bf6 {[%clk
0:02:02.2]} 21. c4 {[%clk 0:01:07.3]} 21... Re8 {[%clk 0:01:58.9]} 22. Qb7
{[%clk 0:00:47.6]} 22... Qxb7 {[%clk 0:01:16.6]} 23. Nxb7 {[%clk 0:00:48.5]}
23... Bd3 {[%clk 0:01:03.1]} 24. Nxd6 {[%clk 0:00:47.8]} 24... Ra8 {[%clk
0:01:03]} 25. g3 {[%clk 0:00:30.3]} 25... Bxf1 {[%clk 0:00:59.1]} 26. Kxf1
{[%clk 0:00:31.2]} 26... Ra4 {[%clk 0:00:46.2]} 27. Ke2 {[%clk 0:00:29.1]} 27...
Kf8 {[%clk 0:00:36.2]} 28. Ne4 {[%clk 0:00:20.4]} 28... Bg7 {[%clk 0:00:29.1]}
29. Kd3 {[%clk 0:00:12.7]} 29... f5 {[%clk 0:00:26.9]} 30. Nc5 {[%clk
0:00:08.2]} 30... Ra3+ {[%clk 0:00:26.3]} 31. Kd2 {[%clk 0:00:08.5]} 31... Ra2+
{[%clk 0:00:17]} 32. Ke3 {[%clk 0:00:08.9]} 32... Ra3+ {[%clk 0:00:17.1]} 33.
Kf4 {[%clk 0:00:06]} 33... Kf7 {[%clk 0:00:12.4]} 34. Ne6 {[%clk 0:00:05.3]}
34... Bf6 {[%clk 0:00:11.3]} 35. h4 {[%clk 0:00:03.9]} 35... h6 {[%clk
0:00:11.2]} 36. Ne5+ {[%clk 0:00:04.1]} 36... Bxe5+ {[%clk 0:00:08.2]} 37. Kxe5
{[%clk 0:00:05]} 37... Rf3 {[%clk 0:00:07.8]} 38. c5 {[%clk 0:00:04.5]} 38...
Rxf2 {[%clk 0:00:07.5]} 39. Kd6 {[%clk 0:00:04.5]} 39... Rf3 {[%clk 0:00:05.2]}
40. c6 {[%clk 0:00:04.9]} 40... Rxg3 {[%clk 0:00:05.8]} 41. c7 {[%clk 0:00:05]}
41... Rc3 {[%clk 0:00:06.5]} 42. Nc5 {[%clk 0:00:05.6]} 42... Rxc5 {[%clk
0:00:04.5]} 43. Kxc5 {[%clk 0:00:06.5]} 43... f4 {[%clk 0:00:04.4]} 44. c8=Q
{[%clk 0:00:07]} 1-0

[Event "Early-Titled-Tuesday-Blitz-January-30-2024"]
[Site "Chess.com"]
[Date "2024.01.30"]
[Round "6"]
[White "Mohamed-almado"]
[Black "HanSchut"]
[Result "0-1"]
[WhiteElo "1571"]
[BlackElo "2263"]
[TimeControl "180+1"]
[EndTime "9:09:03 PST"]
[Termination "HanSchut won by checkmate"]

1. d4 {[%clk 0:01:19]} 1... Nf6 {[%clk 0:02:58.3]} 2. c4 {[%clk 0:01:17.2]} 2...
g6 {[%clk 0:02:58.9]} 3. Nc3 {[%clk 0:01:16.6]} 3... d5 {[%clk 0:02:59.2]} 4.
Bf4 {[%clk 0:01:15.8]} 4... Bg7 {[%clk 0:02:58.3]} 5. e3 {[%clk 0:01:16.1]} 5...
O-O {[%clk 0:02:58.1]} 6. c5 {[%clk 0:01:12.9]} 6... b6 {[%clk 0:02:56.4]} 7. b4
{[%clk 0:01:10]} 7... a5 {[%clk 0:02:56.5]} 8. a3 {[%clk 0:01:09.3]} 8... axb4
{[%clk 0:02:56.7]} 9. axb4 {[%clk 0:01:09]} 9... Rxa1 {[%clk 0:02:56.9]} 10.
Qxa1 {[%clk 0:01:09.8]} 10... Nh5 {[%clk 0:02:46.4]} 11. Bg5 {[%clk 0:01:09.5]}
11... h6 {[%clk 0:02:44]} 12. Bh4 {[%clk 0:01:09.4]} 12... g5 {[%clk 0:02:44.5]}
13. Qd1 {[%clk 0:01:08.9]} 13... Nf6 {[%clk 0:02:31.7]} 14. Bg3 {[%clk
0:01:08.3]} 14... bxc5 {[%clk 0:02:24.2]} 15. bxc5 {[%clk 0:01:07.9]} 15... Nc6
{[%clk 0:02:24.7]} 16. Bd3 {[%clk 0:01:05.1]} 16... e5 {[%clk 0:02:18.3]} 17.
dxe5 {[%clk 0:00:58]} 17... Ng4 {[%clk 0:02:18.5]} 18. Nxd5 {[%clk 0:00:53.2]}
18... Ngxe5 {[%clk 0:01:56.5]} 19. Bc2 {[%clk 0:00:46]} 19... Be6 {[%clk
0:01:49.6]} 20. e4 {[%clk 0:00:45.4]} 20... Nd4 {[%clk 0:01:17.6]} 21. Ne2
{[%clk 0:00:36.5]} 21... Nxc2+ {[%clk 0:01:11.5]} 22. Qxc2 {[%clk 0:00:37]}
22... Bxd5 {[%clk 0:01:09.4]} 23. exd5 {[%clk 0:00:37.6]} 23... Qxd5 {[%clk
0:01:09.9]} 24. O-O {[%clk 0:00:35.4]} 24... Rd8 {[%clk 0:01:00.4]} 25. f4
{[%clk 0:00:25.8]} 25... Ng4 {[%clk 0:00:42.7]} 26. Qc1 {[%clk 0:00:18.8]} 26...
Bd4+ {[%clk 0:00:27.9]} 27. Nxd4 {[%clk 0:00:18.3]} 27... Qxd4+ {[%clk
0:00:28.2]} 28. Kh1 {[%clk 0:00:19]} 28... Ne3 {[%clk 0:00:13]} 29. fxg5 {[%clk
0:00:14.1]} 29... Nxf1 {[%clk 0:00:11.4]} 30. Qxf1 {[%clk 0:00:13.5]} 30... Qd1
{[%clk 0:00:12]} 31. Kg1 {[%clk 0:00:13.8]} 31... Qxf1+ {[%clk 0:00:11.6]} 32.
Kxf1 {[%clk 0:00:14]} 32... Rd7 {[%clk 0:00:12.3]} 33. Ke2 {[%clk 0:00:13.8]}
33... hxg5 {[%clk 0:00:12.1]} 34. Ke3 {[%clk 0:00:13.9]} 34... f5 {[%clk
0:00:12.3]} 35. h3 {[%clk 0:00:13]} 35... f4+ {[%clk 0:00:12.2]} 36. Bxf4 {[%clk
0:00:12.4]} 36... gxf4+ {[%clk 0:00:13.1]} 37. Kxf4 {[%clk 0:00:13.1]} 37... Rd5
{[%clk 0:00:13.5]} 38. g4 {[%clk 0:00:13.6]} 38... Rxc5 {[%clk 0:00:13.9]} 39.
h4 {[%clk 0:00:14.1]} 39... Kg7 {[%clk 0:00:14.3]} 40. h5 {[%clk 0:00:13.1]}
40... Kh6 {[%clk 0:00:13.8]} 41. Kg3 {[%clk 0:00:13.3]} 41... Rg5 {[%clk
0:00:13.9]} 42. Kf4 {[%clk 0:00:13.4]} 42... c5 {[%clk 0:00:14.4]} 43. Ke4
{[%clk 0:00:13.6]} 43... Rxg4+ {[%clk 0:00:14.7]} 44. Kd3 {[%clk 0:00:13.1]}
44... c4+ {[%clk 0:00:15.6]} 45. Kc3 {[%clk 0:00:08.7]} 45... Kxh5 {[%clk
0:00:16.5]} 46. Kc2 {[%clk 0:00:08.4]} 46... Kg5 {[%clk 0:00:16.9]} 47. Kc3
{[%clk 0:00:08.8]} 47... Kf5 {[%clk 0:00:17.8]} 48. Kc2 {[%clk 0:00:08.5]} 48...
Ke5 {[%clk 0:00:18.5]} 49. Kd2 {[%clk 0:00:08.7]} 49... Kd5 {[%clk 0:00:19.2]}
50. Kc2 {[%clk 0:00:09.2]} 50... Kd4 {[%clk 0:00:19.7]} 51. Kb2 {[%clk
0:00:09.5]} 51... Rg2+ {[%clk 0:00:19.9]} 52. Ka1 {[%clk 0:00:09.6]} 52... Kc3
{[%clk 0:00:19.5]} 53. Kb1 {[%clk 0:00:09.9]} 53... Rf2 {[%clk 0:00:19.7]} 54.
Ka1 {[%clk 0:00:10.2]} 54... Kb3 {[%clk 0:00:20.3]} 55. Kb1 {[%clk 0:00:10.6]}
55... Rf1# {[%clk 0:00:20.9]} 0-1